fUSD/lending_fUSD_20260506
["ID","MTS","AMOUNT","RATE_DAILY","PERIOD"]
[421685347,1778041840000,-500.0,0.00013698,2]
[421685350,1778041840000,-168.51,0.00013699,2]
[421685361,1778041840000,-204.542589,0.00013933,2]
[421685349,1778041840000,-200.0,0.00013699,2]
[421685360,1778041840000,-201.915957,0.00013933,2]
[421685354,1778041840000,-168.51,0.0001387,2]
[421685355,1778041840000,-7500.0,0.000139,5]
[421685352,1778041840000,-169.59,0.00013754,2]
[421685351,1778041840000,-718.9,0.00013699,2]
[421685357,1778041840000,-506.15979396,0.00013921,2]
[421685307,1778041840000,-500.0,0.00013698,2]
[421685340,1778041840000,-500.0,0.00013698,2]
[421685334,1778041840000,-500.0,0.00013698,2]
[421685321,1778041840000,-500.0,0.00013698,2]
[421685333,1778041840000,-500.0,0.00013698,2]
[421685308,1778041840000,-505.03766025,0.00013698,2]
[421685318,1778041840000,-500.0,0.00013698,2]
[421685309,1778041840000,-500.0,0.00013698,2]
[421685319,1778041840000,-501.55786541,0.00013698,2]
[421685316,1778041840000,-500.0,0.00013698,2]
[421685313,1778041840000,-531.0,0.00013698,2]
[421685310,1778041840000,-500.0,0.00013698,2]
[421685315,1778041840000,-500.0,0.00013698,2]
[421685317,1778041840000,-500.0,0.00013698,2]
[421685320,1778041840000,-500.0,0.00013698,2]
[421685312,1778041840000,-500.0,0.00013698,2]
[421685328,1778041840000,-500.0,0.00013698,2]
[421685314,1778041840000,-500.0,0.00013698,2]
[421685311,1778041840000,-500.0,0.00013698,2]
[421685323,1778041840000,-500.0,0.00013698,2]
[421685322,1778041840000,-500.0,0.00013698,2]
[421685325,1778041840000,-500.0,0.00013698,2]
[421685324,1778041840000,-559.40184847,0.00013698,2]
[421685331,1778041840000,-500.0,0.00013698,2]
[421685332,1778041840000,-500.0,0.00013698,2]
[421685326,1778041840000,-500.0,0.00013698,2]
[421685330,1778041840000,-500.0,0.00013698,2]
[421685329,1778041840000,-500.0,0.00013698,2]
[421685327,1778041840000,-500.0,0.00013698,2]
[421685358,1778041840000,-1001.13211831,0.00013921,2]
[421685356,1778041840000,-12604.2704622,0.00013913,2]
[421685378,1778041840000,-708.23,0.000142,2]
[421685362,1778041840000,-811.622966,0.00013933,2]
[421685395,1778041840000,-18620.06001088,0.00014269,2]
[421685397,1778041840000,-501.42497213,0.00014273,2]
[421685392,1778041840000,-13239.1390552,0.00014217,2]
[421685394,1778041840000,-150.0,0.00014247,21]
[421685398,1778041840000,-244.4,0.0001428,2]
[421685396,1778041840000,-168.25532997,0.00014273,2]
[421685400,1778041840000,-168.51,0.00014384,2]
[421685401,1778041840000,-5737.5994,0.00014432,2]
[421685404,1778041840000,-166.66,0.00014785,2]
[421685405,1778041840000,-9466.27832853,0.000148,2]
[421685408,1778041840000,-2000.0,0.00014817,2]
[421685393,1778041840000,-150.0,0.00014237,2]
[421685406,1778041840000,-445421.69128848,0.000148,2]
[421685402,1778041840000,-18620.06001088,0.00014614,2]
[421685410,1778041840000,-161.54,0.00014934,2]
[421685409,1778041840000,-1500.0,0.000149,5]
[421685403,1778041840000,-433.0,0.00014619,2]
[421685411,1778041840000,-500.0,0.00014955,2]
[421685413,1778041840000,-295.05018918,0.00014979,2]
[421685414,1778041840000,-1600.0,0.00014985,2]
[421685416,1778041840000,-4536055.38134418,0.00015,2]
[421685415,1778041840000,-59673.46223803,0.00014989,2]
[421685412,1778041840000,-18620.06001088,0.00014958,2]
[421685359,1778041840000,-18620.06001088,0.00013924,2]
[421685399,1778041840000,-166.66,0.00014366,2]
[421685391,1778041840000,-1088862.5739652,0.00014217,2]
[421685407,1778041840000,-1500.0,0.000148,5]
[421685382,1778041840000,-500.0,0.00014216,2]
[421685390,1778041840000,-27655.9123795,0.00014217,2]
[421685364,1778041840000,-208.85,0.00013986,2]
[421685365,1778041840000,-415.44,0.00013986,2]
[421685363,1778041840000,-166.66,0.00013947,2]
[421685375,1778041840000,-12604.2704622,0.00014135,2]
[421685370,1778041840000,-12604.2704622,0.00014024,2]
[421685373,1778041840000,-534.37169858,0.00014117,2]
[421685372,1778041840000,-168.51,0.00014041,2]
[421685367,1778041840000,-250.0,0.00014,2]
[421685374,1778041840000,-1670.83590831,0.00014117,2]
[421685369,1778041840000,-506.0086978,0.00014,2]
[421685368,1778041840000,-8947.61057585,0.00014,2]
[421685366,1778041840000,-587.0,0.0001399,2]
[421685377,1778041840000,-89681.7140662,0.0001416,2]
[421685379,1778041840000,-421.82,0.000142,2]
[421685381,1778041840000,-151.0,0.00014214,2]
[421685380,1778041840000,-168.51,0.00014212,2]
[421685371,1778041840000,-2351.0,0.00014036,2]
[421685386,1778041840000,-500.0,0.00014216,2]
[421685389,1778041840000,-378.66631548,0.00014216,2]
[421685387,1778041840000,-500.0,0.00014216,2]
[421685388,1778041840000,-500.0,0.00014216,2]
[421685383,1778041840000,-500.0,0.00014216,2]
[421685384,1778041840000,-500.0,0.00014216,2]
[421685385,1778041840000,-554.24255009,0.00014216,2]
[421685376,1778041840000,-161.54,0.00014148,2]
[421685430,1778041841000,-1538129.31771813,0.00015,2]
[421685429,1778041841000,-19393.3999986,0.00015,2]
[421685443,1778041841000,-18620.06001088,0.00015648,2]
[421685441,1778041841000,-211.0,0.00015534,2]
[421685434,1778041841000,-18620.06001088,0.00015303,2]
[421685445,1778041841000,-736.0,0.00015903,2]
[421685444,1778041841000,-161.54,0.0001572,2]
[421685446,1778041841000,-377.29903517,0.0001596,2]
[421685428,1778041841000,-606.6000014,0.00015,2]
[421685435,1778041841000,-823.0,0.00015365,2]
[421685431,1778041841000,-3129.04007872,0.00015,2]
[421685422,1778041841000,-70298.25155375,0.00015,2]
[421685425,1778041841000,-69.20771133,0.00015,2]
[421685433,1778041841000,-900.0,0.00015068,2]
[421685426,1778041841000,-256.73781653,0.00015,2]
[421685423,1778041841000,-1687.94574906,0.00015,2]
[421685424,1778041841000,-1298.75255115,0.00015,2]
[421685419,1778041841000,-1643.15886456,0.00015,2]
[421685420,1778041841000,-774.30707654,0.00015,2]
[421685421,1778041841000,-1198.04289802,0.00015,2]
[421685418,1778041841000,-534.0,0.00015,2]
[421685417,1778041841000,-812.50323552,0.00015,2]
[421685437,1778041841000,-150.0,0.00015534,2]
[421685427,1778041841000,-349.86096716,0.00015,2]
[421685442,1778041841000,-169.59,0.00015548,2]
[421685432,1778041841000,-493.08830737,0.00015062,2]
[421685436,1778041841000,-3292.0,0.00015439,2]
[421685447,1778041841000,-18620.06001088,0.00015993,2]
[421685468,1778041841000,-500.0,0.00016438,2]
[421685467,1778041841000,-211.89209251,0.00016438,2]
[421685466,1778041841000,-164.22619886,0.00016438,2]
[421685462,1778041841000,-529.61366875,0.00016438,2]
[421685465,1778041841000,-500.0,0.00016438,2]
[421685464,1778041841000,-500.0,0.00016438,2]
[421685463,1778041841000,-339.1872416,0.00016438,2]
[421685460,1778041841000,-414.74,0.00016438,5]
[421685457,1778041841000,-1905.27,0.00016431,2]
[421685459,1778041841000,-827.91,0.00016438,5]
[421685458,1778041841000,-2084.0,0.00016438,2]
[421685461,1778041841000,-229.62,0.00016438,2]
[421685452,1778041841000,-9999.99,0.00016116,2]
[421685440,1778041841000,-150.0,0.00015534,2]
[421685455,1778041841000,-18620.06001088,0.00016338,2]
[421685439,1778041841000,-150.0,0.00015534,2]
[421685448,1778041841000,-300.0,0.00016,2]
[421685450,1778041841000,-473.52157341,0.000161,2]
[421685451,1778041841000,-474.47361691,0.0001611,15]
[421685438,1778041841000,-150.0,0.00015534,2]
[421685453,1778041841000,-473.52157341,0.000162,2]
[421685456,1778041841000,-150.0,0.00016347,2]
[421685449,1778041841000,-473.52157341,0.00016,2]
[421685454,1778041841000,-2000.0,0.00016298,2]
[421685507,1778041842000,-500.0,0.00016986,2]
[421685501,1778041842000,-199.36,0.00016712,2]
[421685511,1778041842000,-1000.0,0.00016986,2]
[421685502,1778041842000,-1152.0,0.00016874,2]
[421685503,1778041842000,-4609.0,0.00016983,2]
[421685504,1778041842000,-1004.22534813,0.00016986,2]
[421685506,1778041842000,-389.18946307,0.00016986,2]
[421685505,1778041842000,-408.20814367,0.00016986,2]
[421685510,1778041842000,-1000.0,0.00016986,2]
[421685500,1778041842000,-161.54,0.00016506,2]
[421685509,1778041842000,-1000.0,0.00016986,2]
[421685508,1778041842000,-494.5307258,0.00016986,2]
[421685525,1778041842000,-1117.53083552,0.00016986,2]
[421685512,1778041842000,-1001.44323485,0.00016986,2]
[421685515,1778041842000,-236.51404218,0.00016986,2]
[421685514,1778041842000,-1001.56593355,0.00016986,2]
[421685520,1778041842000,-565.62994908,0.00016986,2]
[421685516,1778041842000,-1000.0,0.00016986,2]
[421685518,1778041842000,-931.73147682,0.00016986,2]
[421685519,1778041842000,-1000.0,0.00016986,2]
[421685517,1778041842000,-1000.0,0.00016986,2]
[421685521,1778041842000,-195.85164586,0.00016986,2]
[421685523,1778041842000,-1003.07944368,0.00016986,2]
[421685524,1778041842000,-1001.25123235,0.00016986,2]
[421685493,1778041842000,-366.59660479,0.00016438,2]
[421685522,1778041842000,-818.00937475,0.00016986,2]
[421685513,1778041842000,-1000.0,0.00016986,2]
[421685492,1778041842000,-500.0,0.00016438,2]
[421685484,1778041842000,-500.0,0.00016438,2]
[421685490,1778041842000,-500.0,0.00016438,2]
[421685530,1778041842000,-1252.0,0.00017298,2]
[421685473,1778041842000,-500.43861517,0.00016438,2]
[421685469,1778041842000,-900.0,0.00016438,2]
[421685470,1778041842000,-162.59148893,0.00016438,2]
[421685472,1778041842000,-500.0,0.00016438,2]
[421685471,1778041842000,-500.0,0.00016438,2]
[421685475,1778041842000,-500.0,0.00016438,2]
[421685485,1778041842000,-500.0,0.00016438,2]
[421685476,1778041842000,-500.0,0.00016438,2]
[421685474,1778041842000,-500.0,0.00016438,2]
[421685478,1778041842000,-313.910179,0.00016438,2]
[421685480,1778041842000,-500.0,0.00016438,2]
[421685483,1778041842000,-500.0,0.00016438,2]
[421685479,1778041842000,-500.0,0.00016438,2]
[421685477,1778041842000,-500.0,0.00016438,2]
[421685482,1778041842000,-500.0,0.00016438,2]
[421685481,1778041842000,-500.0,0.00016438,2]
[421685487,1778041842000,-500.0,0.00016438,2]
[421685497,1778041842000,-439.39,0.00016474,2]
[421685486,1778041842000,-500.0,0.00016438,2]
[421685496,1778041842000,-492.59344334,0.00016438,2]
[421685491,1778041842000,-500.0,0.00016438,2]
[421685488,1778041842000,-500.0,0.00016438,2]
[421685489,1778041842000,-500.0,0.00016438,2]
[421685495,1778041842000,-500.0,0.00016438,2]
[421685499,1778041842000,-1600.0,0.00016483,2]
[421685498,1778041842000,-2245.51,0.00016474,2]
[421685494,1778041842000,-409.67569187,0.00016438,2]
[421685531,1778041842000,-473.75913536,0.00017534,2]
[421685536,1778041842000,-1500.0,0.00017534,2]
[421685526,1778041842000,-1004.32156241,0.00016986,2]
[421685573,1778041842000,-296.59,0.00018031,2]
[421685569,1778041842000,-151.0,0.00017986,2]
[421685562,1778041842000,-151.0,0.00017986,2]
[421685567,1778041842000,-151.0,0.00017986,2]
[421685559,1778041842000,-151.0,0.00017986,2]
[421685564,1778041842000,-151.0,0.00017986,2]
[421685565,1778041842000,-151.0,0.00017986,2]
[421685568,1778041842000,-151.0,0.00017986,2]
[421685571,1778041842000,-110617.00103074,0.00018,2]
[421685575,1778041842000,-161.54,0.00018078,2]
[421685585,1778041842000,-2000.0,0.00018082,2]
[421685576,1778041842000,-2000.0,0.00018082,2]
[421685586,1778041842000,-1501.89267553,0.00018113,2]
[421685587,1778041842000,-296.59,0.00018178,2]
[421685589,1778041842000,-446.0,0.00018531,2]
[421685588,1778041842000,-2084.0,0.0001841,2]
[421685577,1778041842000,-2000.0,0.00018082,2]
[421685590,1778041842000,-1117.83469168,0.0001863,2]
[421685582,1778041842000,-2017.16375829,0.00018082,2]
[421685581,1778041842000,-961.74205325,0.00018082,2]
[421685579,1778041842000,-2000.0,0.00018082,2]
[421685591,1778041842000,-2500.0,0.0001863,2]
[421685595,1778041842000,-435.94,0.0001872,2]
[421685596,1778041842000,-21901.38,0.0001872,2]
[421685593,1778041842000,-2500.0,0.0001863,2]
[421685592,1778041842000,-2500.0,0.0001863,2]
[421685528,1778041842000,-374602.19120611,0.00017,2]
[421685566,1778041842000,-151.0,0.00017986,2]
[421685557,1778041842000,-151.0,0.00017986,2]
[421685594,1778041842000,-6453.0,0.00018682,2]
[421685570,1778041842000,-350.0,0.00018,2]
[421685560,1778041842000,-151.0,0.00017986,2]
[421685527,1778041842000,-1000.0,0.00016986,2]
[421685532,1778041842000,-1500.0,0.00017534,2]
[421685534,1778041842000,-1500.0,0.00017534,2]
[421685544,1778041842000,-169.58,0.00017939,2]
[421685533,1778041842000,-1500.0,0.00017534,2]
[421685535,1778041842000,-1500.0,0.00017534,2]
[421685542,1778041842000,-197.73,0.00017894,14]
[421685543,1778041842000,-197.73,0.00017909,14]
[421685541,1778041842000,-197.73,0.00017788,14]
[421685537,1778041842000,-501.54617284,0.00017534,2]
[421685539,1778041842000,-457.24022354,0.00017761,2]
[421685538,1778041842000,-1500.0,0.00017534,2]
[421685529,1778041842000,-161.54,0.00017292,2]
[421685545,1778041842000,-1600.0,0.00017982,2]
[421685540,1778041842000,-2000.0,0.0001778,2]
[421685546,1778041842000,-296.59,0.00017986,2]
[421685556,1778041842000,-151.0,0.00017986,2]
[421685552,1778041842000,-151.0,0.00017986,2]
[421685554,1778041842000,-151.0,0.00017986,2]
[421685553,1778041842000,-151.0,0.00017986,2]
[421685551,1778041842000,-151.0,0.00017986,2]
[421685550,1778041842000,-151.0,0.00017986,2]
[421685548,1778041842000,-151.0,0.00017986,2]
[421685549,1778041842000,-151.0,0.00017986,2]
[421685547,1778041842000,-151.0,0.00017986,2]
[421685555,1778041842000,-151.0,0.00017986,2]
[421685635,1778041843000,-500.0,0.00019178,2]
[421685638,1778041843000,-380.41984111,0.00019178,2]
[421685637,1778041843000,-500.0,0.00019178,2]
[421685636,1778041843000,-500.0,0.00019178,2]
[421685629,1778041843000,-500.0,0.00019178,2]
[421685634,1778041843000,-500.0,0.00019178,2]
[421685632,1778041843000,-500.0,0.00019178,2]
[421685631,1778041843000,-500.0,0.00019178,2]
[421685630,1778041843000,-500.0,0.00019178,2]
[421685628,1778041843000,-500.0,0.00019178,2]
[421685633,1778041843000,-500.0,0.00019178,2]
[421685641,1778041843000,-1869.28734531,0.00019178,2]
[421685647,1778041843000,-308.76005028,0.000194,2]
[421685643,1778041843000,-2008.23716968,0.00019178,2]
[421685639,1778041843000,-2914.17,0.00019178,2]
[421685644,1778041843000,-162.55277151,0.00019358,2]
[421685649,1778041843000,-500.0,0.00019514,2]
[421685640,1778041843000,-150.0,0.00019178,2]
[421685646,1778041843000,-207.86895535,0.00019358,2]
[421685648,1778041843000,-199.23999669,0.000194,2]
[421685645,1778041843000,-160.0,0.00019358,2]
[421685650,1778041843000,-500.0,0.00019514,2]
[421685652,1778041843000,-500.0,0.00019514,2]
[421685660,1778041843000,-4986.65705926,0.000199,3]
[421685627,1778041843000,-500.0,0.00019178,2]
[421685661,1778041843000,-286741.23074955,0.0001995,15]
[421685642,1778041843000,-385.17092439,0.00019178,2]
[421685626,1778041843000,-500.0,0.00019178,2]
[421685615,1778041843000,-500.0,0.00019178,2]
[421685623,1778041843000,-500.0,0.00019178,2]
[421685659,1778041843000,-308.76005028,0.000199,2]
[421685602,1778041843000,-500.0,0.00019178,2]
[421685603,1778041843000,-500.0,0.00019178,2]
[421685599,1778041843000,-161.54,0.00018864,2]
[421685597,1778041843000,-119312.84993875,0.000188,2]
[421685600,1778041843000,-3000.0,0.00019178,2]
[421685598,1778041843000,-2129.0,0.00018829,2]
[421685604,1778041843000,-500.0,0.00019178,2]
[421685605,1778041843000,-500.0,0.00019178,2]
[421685606,1778041843000,-500.0,0.00019178,2]
[421685607,1778041843000,-500.0,0.00019178,2]
[421685610,1778041843000,-500.0,0.00019178,2]
[421685624,1778041843000,-500.0,0.00019178,2]
[421685609,1778041843000,-500.0,0.00019178,2]
[421685616,1778041843000,-500.0,0.00019178,2]
[421685613,1778041843000,-500.0,0.00019178,2]
[421685611,1778041843000,-500.0,0.00019178,2]
[421685612,1778041843000,-500.0,0.00019178,2]
[421685614,1778041843000,-500.0,0.00019178,2]
[421685618,1778041843000,-500.0,0.00019178,2]
[421685617,1778041843000,-500.0,0.00019178,2]
[421685620,1778041843000,-500.0,0.00019178,2]
[421685621,1778041843000,-500.0,0.00019178,2]
[421685619,1778041843000,-500.0,0.00019178,2]
[421685622,1778041843000,-500.0,0.00019178,2]
[421685625,1778041843000,-500.0,0.00019178,2]
[421685608,1778041843000,-500.0,0.00019178,2]
[421685662,1778041843000,-439.39,0.00019968,2]
[421685601,1778041843000,-500.0,0.00019178,2]
[421685651,1778041843000,-501.53082695,0.00019514,2]
[421685706,1778041843000,-2000.0,0.00020076,2]
[421685708,1778041843000,-2000.0,0.00020076,2]
[421685709,1778041843000,-2000.0,0.00020076,2]
[421685712,1778041843000,-2000.0,0.00020076,2]
[421685710,1778041843000,-2000.0,0.00020076,2]
[421685716,1778041843000,-2000.0,0.00020076,2]
[421685715,1778041843000,-2000.0,0.00020076,2]
[421685711,1778041843000,-2000.0,0.00020076,2]
[421685714,1778041843000,-2000.0,0.00020076,2]
[421685713,1778041843000,-2000.0,0.00020076,2]
[421685717,1778041843000,-2000.0,0.00020076,2]
[421685728,1778041843000,-502.13953093,0.00020536,2]
[421685723,1778041843000,-308.76005028,0.000201,2]
[421685721,1778041843000,-2000.0,0.00020076,2]
[421685719,1778041843000,-2000.0,0.00020076,2]
[421685720,1778041843000,-2000.0,0.00020076,2]
[421685718,1778041843000,-2000.0,0.00020076,2]
[421685724,1778041843000,-1002.10973809,0.0002023,2]
[421685722,1778041843000,-2000.0,0.00020076,2]
[421685725,1778041843000,-350.0,0.00020274,2]
[421685733,1778041843000,-1750.0,0.00020606,2]
[421685726,1778041843000,-2084.0,0.00020381,2]
[421685727,1778041843000,-1809.0,0.00020484,2]
[421685730,1778041843000,-9035.0,0.0002055,2]
[421685729,1778041843000,-21766.67,0.00020548,2]
[421685731,1778041843000,-2000.0,0.00020606,2]
[421685653,1778041843000,-503.04106779,0.00019565,2]
[421685707,1778041843000,-2000.0,0.00020076,2]
[421685701,1778041843000,-1000.0,0.00020062,2]
[421685732,1778041843000,-1750.0,0.00020606,2]
[421685695,1778041843000,-2000.0,0.00020062,2]
[421685664,1778041843000,-163.0,0.0002,2]
[421685654,1778041843000,-308.76005028,0.000196,2]
[421685656,1778041843000,-309.24927612,0.00019682,2]
[421685658,1778041843000,-250.0,0.00019726,2]
[421685657,1778041843000,-308.76005028,0.000197,2]
[421685655,1778041843000,-500.0,0.00019682,2]
[421685668,1778041843000,-8829.0,0.0002,2]
[421685705,1778041843000,-2000.0,0.00020076,2]
[421685666,1778041843000,-642.0,0.0002,2]
[421685679,1778041843000,-400.0,0.0002,2]
[421685677,1778041843000,-1152.0,0.0002,2]
[421685682,1778041843000,-373.0,0.0002,2]
[421685673,1778041843000,-292.0,0.0002,2]
[421685675,1778041843000,-372.0,0.0002,2]
[421685683,1778041843000,-7067.96587589,0.0002,2]
[421685703,1778041843000,-2000.0,0.00020076,2]
[421685669,1778041843000,-375.0,0.0002,2]
[421685693,1778041843000,-2000.0,0.00020062,2]
[421685700,1778041843000,-632.20967093,0.00020062,2]
[421685697,1778041843000,-2000.0,0.00020062,2]
[421685702,1778041843000,-1000.0,0.00020062,2]
[421685704,1778041843000,-2000.0,0.00020076,2]
[421685691,1778041843000,-302.3768071,0.0002,10]
[421685690,1778041843000,-1000.0,0.0002,7]
[421685688,1778041843000,-25877.32509415,0.0002,2]
[421685686,1778041843000,-520.0,0.0002,2]
[421685671,1778041843000,-158.0,0.0002,2]
[421685699,1778041843000,-2000.0,0.00020062,2]
[421685779,1778041844000,-2000.0,0.00020972,2]
[421685774,1778041844000,-2000.0,0.00020938,2]
[421685775,1778041844000,-2000.0,0.00020938,2]
[421685771,1778041844000,-2000.0,0.00020938,2]
[421685780,1778041844000,-2000.0,0.00020972,2]
[421685761,1778041844000,-2000.0,0.00020814,2]
[421685768,1778041844000,-2000.0,0.00020938,2]
[421685765,1778041844000,-2000.0,0.00020938,2]
[421685763,1778041844000,-2000.0,0.00020938,2]
[421685764,1778041844000,-2000.0,0.00020938,2]
[421685769,1778041844000,-2000.0,0.00020938,2]
[421685778,1778041844000,-2000.0,0.00020972,2]
[421685787,1778041844000,-2000.0,0.00020972,2]
[421685781,1778041844000,-2000.0,0.00020972,2]
[421685770,1778041844000,-2000.0,0.00020938,2]
[421685777,1778041844000,-2000.0,0.00020938,2]
[421685776,1778041844000,-2000.0,0.00020938,2]
[421685773,1778041844000,-2000.0,0.00020938,2]
[421685783,1778041844000,-2000.0,0.00020972,2]
[421685782,1778041844000,-2000.0,0.00020972,2]
[421685784,1778041844000,-2000.0,0.00020972,2]
[421685786,1778041844000,-2000.0,0.00020972,2]
[421685788,1778041844000,-2000.0,0.00020972,2]
[421685785,1778041844000,-2000.0,0.00020972,2]
[421685762,1778041844000,-450.0,0.00020822,2]
[421685772,1778041844000,-2000.0,0.00020938,2]
[421685759,1778041844000,-2000.0,0.00020814,2]
[421685754,1778041844000,-2000.0,0.00020814,2]
[421685760,1778041844000,-2000.0,0.00020814,2]
[421685790,1778041844000,-2000.0,0.00020972,2]
[421685740,1778041844000,-1382.0,0.00020606,2]
[421685741,1778041844000,-1500.0,0.0002061,2]
[421685737,1778041844000,-1750.0,0.00020606,2]
[421685739,1778041844000,-1750.0,0.00020606,2]
[421685738,1778041844000,-1750.0,0.00020606,2]
[421685736,1778041844000,-1750.0,0.00020606,2]
[421685735,1778041844000,-1750.0,0.00020606,2]
[421685734,1778041844000,-1750.0,0.00020606,2]
[421685743,1778041844000,-150.0,0.00020617,2]
[421685742,1778041844000,-1500.0,0.0002061,2]
[421685744,1778041844000,-22926.97907708,0.000207,2]
[421685758,1778041844000,-2000.0,0.00020814,2]
[421685745,1778041844000,-2000.0,0.00020814,2]
[421685746,1778041844000,-2000.0,0.00020814,2]
[421685750,1778041844000,-2000.0,0.00020814,2]
[421685752,1778041844000,-2000.0,0.00020814,2]
[421685747,1778041844000,-2000.0,0.00020814,2]
[421685749,1778041844000,-2000.0,0.00020814,2]
[421685748,1778041844000,-2000.0,0.00020814,2]
[421685751,1778041844000,-2000.0,0.00020814,2]
[421685756,1778041844000,-2000.0,0.00020814,2]
[421685767,1778041844000,-2000.0,0.00020938,2]
[421685766,1778041844000,-2000.0,0.00020938,2]
[421685755,1778041844000,-2000.0,0.00020814,2]
[421685757,1778041844000,-2000.0,0.00020814,2]
[421685753,1778041844000,-2000.0,0.00020814,2]
[421685796,1778041844000,-292.0,0.00021,2]
[421685789,1778041844000,-2000.0,0.00020972,2]
[421685836,1778041844000,-1565.54992568,0.00022254,2]
[421685824,1778041844000,-642.0,0.00022,2]
[421685827,1778041844000,-292.0,0.00022,2]
[421685823,1778041844000,-163.0,0.00022,2]
[421685830,1778041844000,-450.0,0.00022,2]
[421685825,1778041844000,-375.0,0.00022,2]
[421685826,1778041844000,-158.0,0.00022,2]
[421685829,1778041844000,-1152.0,0.00022,2]
[421685833,1778041844000,-89398.23,0.00022072,2]
[421685828,1778041844000,-372.0,0.00022,2]
[421685831,1778041844000,-373.0,0.00022,2]
[421685832,1778041844000,-520.0,0.00022,2]
[421685835,1778041844000,-3000.0,0.00022254,2]
[421685818,1778041844000,-2500.0,0.00021706,2]
[421685844,1778041844000,-35948.84403507,0.000225,2]
[421685837,1778041844000,-450.0,0.00022261,2]
[421685846,1778041844000,-500.0,0.00022558,7]
[421685839,1778041844000,-170.86185645,0.00022407,2]
[421685841,1778041844000,-170.86185642,0.00022407,2]
[421685840,1778041844000,-170.86185642,0.00022407,2]
[421685845,1778041844000,-779.0,0.00022558,7]
[421685842,1778041844000,-788.48,0.00022436,2]
[421685843,1778041844000,-2900.0,0.000225,15]
[421685847,1778041844000,-557.886,0.00022558,7]
[421685848,1778041844000,-1663.50053953,0.000226,2]
[421685798,1778041844000,-1152.0,0.00021,2]
[421685849,1778041844000,-199.36,0.00022603,2]
[421685838,1778041844000,-2084.0,0.00022353,2]
[421685820,1778041844000,-788.48,0.00021888,2]
[421685834,1778041844000,-788.48,0.00022162,2]
[421685816,1778041844000,-788.48,0.00021614,2]
[421685797,1778041844000,-372.0,0.00021,2]
[421685795,1778041844000,-158.0,0.00021,2]
[421685793,1778041844000,-642.0,0.00021,2]
[421685792,1778041844000,-163.0,0.00021,2]
[421685791,1778041844000,-2000.0,0.00020972,2]
[421685794,1778041844000,-375.0,0.00021,2]
[421685800,1778041844000,-520.0,0.00021,2]
[421685808,1778041844000,-1024.67428704,0.0002156,5]
[421685819,1778041844000,-350.0,0.00021713,2]
[421685801,1778041844000,-2000.0,0.00021158,2]
[421685809,1778041844000,-1047.61568277,0.0002156,5]
[421685802,1778041844000,-2000.0,0.00021158,2]
[421685805,1778041844000,-1350.0,0.00021399,2]
[421685806,1778041844000,-450.0,0.00021399,7]
[421685799,1778041844000,-373.0,0.00021,2]
[421685804,1778041844000,-550.0,0.0002137,2]
[421685807,1778041844000,-58241.82039864,0.000215,2]
[421685811,1778041844000,-1128.18658586,0.0002156,5]
[421685810,1778041844000,-1054.64500886,0.0002156,5]
[421685822,1778041844000,-401.94273924,0.00021918,2]
[421685821,1778041844000,-5000.0,0.00021918,2]
[421685813,1778041844000,-1105.2269472,0.0002156,5]
[421685812,1778041844000,-1102.97986943,0.0002156,5]
[421685814,1778041844000,-1090.58598395,0.0002156,5]